[Event "Titled Tuesday Blitz December 13 Early 2022"]
[White "Djokic, Mihailo"]
[Black "Harshavardhan G B"]
[WhiteFideId "976440"]
[BlackFideId "25059009"]
[WhiteElo "2294"]
[BlackElo "2323"]
[Result "0-1"]
[Round "06"]
[TimeControl "180+1"]
[Date "2022.12.14"]
[WhiteClock "0:00:03"]
[BlackClock "0:00:41"]

1. e4 {[%clk 0:02:54]}  c5 {[%clk 0:02:57]} 2. Nf3 {[%clk 0:02:54]}  d6 {[%clk 0:02:55]} 3. d4 {[%clk 0:02:54]}  cxd4 {[%clk 0:02:54]} 4. Nxd4 {[%clk 0:02:55]}  Nf6 {[%clk 0:02:54]} 5. Nc3 {[%clk 0:02:54]}  Nc6 {[%clk 0:02:54]} 6. Bg5 {[%clk 0:02:43]}  e6 {[%clk 0:02:52]} 7. Qd2 {[%clk 0:02:42]}  a6 {[%clk 0:02:51]} 8. O-O-O {[%clk 0:02:41]}  Bd7 {[%clk 0:02:51]} 9. f4 {[%clk 0:02:41]}  b5 {[%clk 0:02:51]} 10. Bxf6 {[%clk 0:02:33]}  gxf6 {[%clk 0:02:40]} 11. f5 {[%clk 0:01:39]}  Nxd4 {[%clk 0:02:34]} 12. Qxd4 {[%clk 0:01:39]}  Bh6+ {[%clk 0:02:34]} 13. Kb1 {[%clk 0:01:36]}  Bf4 {[%clk 0:02:34]} 14. Ne2 {[%clk 0:01:29]}  Be5 {[%clk 0:02:33]} 15. Qe3 {[%clk 0:01:29]}  Qc7 {[%clk 0:02:28]} 16. Nf4 {[%clk 0:01:17]}  O-O-O {[%clk 0:02:21]} 17. g3 {[%clk 0:01:00]}  Kb8 {[%clk 0:02:17]} 18. Nd3 {[%clk 0:00:56]}  Rc8 {[%clk 0:02:14]} 19. Rd2 {[%clk 0:00:54]}  exf5 {[%clk 0:02:00]} 20. exf5 {[%clk 0:00:45]}  Bc6 {[%clk 0:01:56]} 21. Bg2 {[%clk 0:00:43]}  Rhe8 {[%clk 0:01:55]} 22. Bxc6 {[%clk 0:00:40]}  Qxc6 {[%clk 0:01:52]} 23. Qg1 {[%clk 0:00:27]}  Bd4 {[%clk 0:01:37]} 24. Nb4 {[%clk 0:00:15]}  Bxg1 {[%clk 0:01:17]} 25. Nxc6+ {[%clk 0:00:14]}  Rxc6 {[%clk 0:01:18]} 26. Rxg1 {[%clk 0:00:15]}  Re5 {[%clk 0:01:18]} 27. g4 {[%clk 0:00:14]}  Kc7 {[%clk 0:01:18]} 28. c3 {[%clk 0:00:14]}  Rc4 {[%clk 0:01:17]} 29. h3 {[%clk 0:00:11]}  d5 {[%clk 0:01:15]} 30. Rgd1 {[%clk 0:00:11]}  Kd6 {[%clk 0:01:15]} 31. Rd3 {[%clk 0:00:10]}  Rce4 {[%clk 0:01:15]} 32. R1d2 {[%clk 0:00:10]}  Re3 {[%clk 0:01:13]} 33. Kc2 {[%clk 0:00:07]}  Rxd3 {[%clk 0:01:13]} 34. Rxd3 {[%clk 0:00:07]}  Re2+ {[%clk 0:01:12]} 35. Rd2 {[%clk 0:00:07]}  Re1 {[%clk 0:01:07]} 36. Rd3 {[%clk 0:00:07]}  Ke5 {[%clk 0:01:06]} 37. Kd2 {[%clk 0:00:07]}  Rh1 {[%clk 0:01:02]} 38. Re3+ {[%clk 0:00:06]}  Kf4 {[%clk 0:00:58]} 39. Rd3 {[%clk 0:00:07]}  Rh2+ {[%clk 0:00:57]} 40. Kc1 {[%clk 0:00:06]}  Ke4 {[%clk 0:00:58]} 41. Rd4+ {[%clk 0:00:03]}  Ke5 {[%clk 0:00:57]} 42. Rd3 {[%clk 0:00:04]}  a5 {[%clk 0:00:52]} 43. a3 {[%clk 0:00:04]}  a4 {[%clk 0:00:52]} 44. Kb1 {[%clk 0:00:04]}  Re2 {[%clk 0:00:49]} 45. Kc1 {[%clk 0:00:04]}  Kd6 {[%clk 0:00:46]} 46. Kb1 {[%clk 0:00:02]}  Kc6 {[%clk 0:00:46]} 47. Kc1 {[%clk 0:00:02]}  Kc5 {[%clk 0:00:46]} 48. Rd4 {[%clk 0:00:01]}  Re3 {[%clk 0:00:43]} 49. h4 {[%clk 0:00:01]}  h6 {[%clk 0:00:42]} 50. Kb1 {[%clk 0:00:01]}  Rh3 {[%clk 0:00:41]} 51. h5 {[%clk 0:00:01]}  Re3 {[%clk 0:00:40]} 52. Kc1 {[%clk 0:00:02]}  Re4 {[%clk 0:00:40]} 53. Rxe4 {[%clk 0:00:02]}  dxe4 {[%clk 0:00:41]} 54. Kd2 {[%clk 0:00:02]}  Kc4 {[%clk 0:00:41]} 55. Ke3 {[%clk 0:00:03]}  Kb3 {[%clk 0:00:41]} 56. Kxe4 {[%clk 0:00:03]}  Kxb2 {[%clk 0:00:42]} 57. Kd4 {[%clk 0:00:02]}  Kxa3 {[%clk 0:00:41]} 58. Kc5 {[%clk 0:00:03]}  Kb3 {[%clk 0:00:41]} 59. g5 {[%clk 0:00:02]}  fxg5 {[%clk 0:00:40]} 60. Kxb5 {[%clk 0:00:02]}  a3 {[%clk 0:00:41]} 61. c4 {[%clk 0:00:02]}  a2 {[%clk 0:00:41]} 62. c5 {[%clk 0:00:03]} 0-1


[Site "https://www.chess.com"]

[Event "Titled Tuesday Blitz December 13 Early 2022"]
[White "Donchenko, Alexander"]
[Black "Taboas Rodriguez, Daniel"]
[WhiteFideId "24603295"]
[BlackFideId "2208466"]
[WhiteElo "2581"]
[BlackElo "2329"]
[Result "1-0"]
[Round "06"]
[TimeControl "180+1"]
[Date "2022.12.14"]
[WhiteClock "0:01:53"]
[BlackClock "0:01:08"]

1. e4 {[%clk 0:03:00]}  e5 {[%clk 0:02:59]} 2. Nf3 {[%clk 0:03:01]}  Nc6 {[%clk 0:02:59]} 3. Bc4 {[%clk 0:03:01]}  Nf6 {[%clk 0:02:59]} 4. d3 {[%clk 0:03:02]}  Bc5 {[%clk 0:03:00]} 5. c3 {[%clk 0:03:02]}  d6 {[%clk 0:03:00]} 6. O-O {[%clk 0:03:03]}  a6 {[%clk 0:03:00]} 7. a4 {[%clk 0:03:02]}  Ba7 {[%clk 0:03:00]} 8. Re1 {[%clk 0:03:01]}  Be6 {[%clk 0:02:56]} 9. Bxe6 {[%clk 0:02:52]}  fxe6 {[%clk 0:02:57]} 10. b4 {[%clk 0:02:50]}  O-O {[%clk 0:02:56]} 11. Be3 {[%clk 0:02:49]}  Nh5 {[%clk 0:02:51]} 12. Bxa7 {[%clk 0:02:49]}  Rxa7 {[%clk 0:02:52]} 13. Nbd2 {[%clk 0:02:47]}  Nf4 {[%clk 0:02:51]} 14. Nf1 {[%clk 0:02:47]}  Ra8 {[%clk 0:02:44]} 15. g3 {[%clk 0:02:44]}  Nh3+ {[%clk 0:02:40]} 16. Kg2 {[%clk 0:02:44]}  Ng5 {[%clk 0:02:41]} 17. Ng1 {[%clk 0:02:43]}  Qf6 {[%clk 0:02:40]} 18. Ra2 {[%clk 0:02:43]}  h6 {[%clk 0:02:23]} 19. Ne3 {[%clk 0:02:42]}  Rf7 {[%clk 0:02:19]} 20. Rf1 {[%clk 0:02:39]}  Raf8 {[%clk 0:02:19]} 21. b5 {[%clk 0:02:38]}  Ne7 {[%clk 0:02:15]} 22. bxa6 {[%clk 0:02:38]}  bxa6 {[%clk 0:02:15]} 23. Rb2 {[%clk 0:02:33]}  Ng6 {[%clk 0:02:13]} 24. Rb7 {[%clk 0:02:32]}  Qd8 {[%clk 0:02:02]} 25. Qb3 {[%clk 0:02:29]}  Kh8 {[%clk 0:02:00]} 26. Ra7 {[%clk 0:02:28]}  Nf3 {[%clk 0:01:56]} 27. Nxf3 {[%clk 0:02:24]}  Rxf3 {[%clk 0:01:57]} 28. Qxe6 {[%clk 0:02:22]}  R8f6 {[%clk 0:01:54]} 29. Qc4 {[%clk 0:02:19]}  Qf8 {[%clk 0:01:54]} 30. Ng4 {[%clk 0:02:15]}  R6f4 {[%clk 0:01:38]} 31. gxf4 {[%clk 0:02:00]}  Qxf4 {[%clk 0:01:39]} 32. Ra8+ {[%clk 0:01:59]}  Nf8 {[%clk 0:01:38]} 33. Rxf8+ {[%clk 0:01:59]}  Qxf8 {[%clk 0:01:38]} 34. Qxc7 {[%clk 0:01:57]}  Kh7 {[%clk 0:01:30]} 35. Qd7 {[%clk 0:01:54]}  Rxd3 {[%clk 0:01:26]} 36. Ne3 {[%clk 0:01:54]}  Rxc3 {[%clk 0:01:24]} 37. Qf5+ {[%clk 0:01:53]}  Qxf5 {[%clk 0:01:24]} 38. Nxf5 {[%clk 0:01:54]}  Rc4 {[%clk 0:01:23]} 39. Nxd6 {[%clk 0:01:54]}  Rxa4 {[%clk 0:01:23]} 40. Rd1 {[%clk 0:01:54]}  Rd4 {[%clk 0:01:21]} 41. Rxd4 {[%clk 0:01:53]}  exd4 {[%clk 0:01:22]} 42. Kf3 {[%clk 0:01:53]}  Kg6 {[%clk 0:01:13]} 43. Ke2 {[%clk 0:01:53]}  a5 {[%clk 0:01:10]} 44. Kd3 {[%clk 0:01:53]}  a4 {[%clk 0:01:10]} 45. Nc4 {[%clk 0:01:53]}  Kg5 {[%clk 0:01:07]} 46. Kxd4 {[%clk 0:01:53]}  Kf4 {[%clk 0:01:08]} 47. e5 {[%clk 0:01:53]} 1-0


[Site "https://www.chess.com"]

[Event "Titled Tuesday Blitz December 13 Early 2022"]
[White "Dubov, Daniil"]
[Black "Pichot, Alan"]
[WhiteFideId "24126055"]
[BlackFideId "110973"]
[WhiteElo "2792"]
[BlackElo "2561"]
[Result "1-0"]
[Round "06"]
[TimeControl "180+1"]
[Date "2022.12.13"]
[WhiteClock "0:00:14"]
[BlackClock "0:00:20"]

1. e4 {[%clk 0:02:59]}  c5 {[%clk 0:02:54]} 2. Nf3 {[%clk 0:02:59]}  e6 {[%clk 0:02:54]} 3. d4 {[%clk 0:02:58]}  cxd4 {[%clk 0:02:54]} 4. Nxd4 {[%clk 0:02:59]}  Nc6 {[%clk 0:02:55]} 5. Nc3 {[%clk 0:02:59]}  Qc7 {[%clk 0:02:55]} 6. g3 {[%clk 0:02:57]}  a6 {[%clk 0:02:52]} 7. Bg2 {[%clk 0:02:57]}  Nf6 {[%clk 0:02:50]} 8. Nb3 {[%clk 0:02:56]}  Be7 {[%clk 0:02:48]} 9. O-O {[%clk 0:02:56]}  O-O {[%clk 0:02:48]} 10. g4 {[%clk 0:02:54]}  d6 {[%clk 0:02:46]} 11. g5 {[%clk 0:02:50]}  Nd7 {[%clk 0:02:46]} 12. f4 {[%clk 0:02:50]}  b5 {[%clk 0:02:46]} 13. Rf3 {[%clk 0:02:49]}  Re8 {[%clk 0:02:44]} 14. Rh3 {[%clk 0:02:49]}  g6 {[%clk 0:02:43]} 15. f5 {[%clk 0:02:41]}  Nde5 {[%clk 0:02:32]} 16. Bf4 {[%clk 0:02:35]}  exf5 {[%clk 0:02:19]} 17. Nd5 {[%clk 0:02:34]}  Qa7+ {[%clk 0:02:19]} 18. Be3 {[%clk 0:02:29]}  Qb8 {[%clk 0:02:18]} 19. Rh4 {[%clk 0:02:19]}  Be6 {[%clk 0:02:12]} 20. exf5 {[%clk 0:02:12]}  Bxf5 {[%clk 0:02:11]} 21. Nd4 {[%clk 0:02:11]}  Nxd4 {[%clk 0:02:08]} 22. Qxd4 {[%clk 0:02:11]}  Qd8 {[%clk 0:01:57]} 23. Nxe7+ {[%clk 0:01:06]}  Qxe7 {[%clk 0:01:54]} 24. Bxa8 {[%clk 0:00:55]}  Rxa8 {[%clk 0:01:55]} 25. Rf1 {[%clk 0:00:55]}  Re8 {[%clk 0:01:45]} 26. Bd2 {[%clk 0:00:51]}  Qb7 {[%clk 0:01:23]} 27. Rhf4 {[%clk 0:00:50]}  Nc4 {[%clk 0:01:06]} 28. Bc3 {[%clk 0:00:47]}  Re5 {[%clk 0:01:06]} 29. Qf2 {[%clk 0:00:35]}  Re4 {[%clk 0:00:57]} 30. Rxe4 {[%clk 0:00:33]}  Qxe4 {[%clk 0:00:54]} 31. Qd4 {[%clk 0:00:33]}  Qxd4+ {[%clk 0:00:37]} 32. Bxd4 {[%clk 0:00:34]}  Nd2 {[%clk 0:00:35]} 33. Rf4 {[%clk 0:00:28]}  Ne4 {[%clk 0:00:36]} 34. h4 {[%clk 0:00:27]}  Kf8 {[%clk 0:00:35]} 35. c3 {[%clk 0:00:24]}  Ke7 {[%clk 0:00:35]} 36. Kg2 {[%clk 0:00:24]}  Ke6 {[%clk 0:00:35]} 37. Rf1 {[%clk 0:00:23]}  Kd5 {[%clk 0:00:32]} 38. Rd1 {[%clk 0:00:20]}  Bg4 {[%clk 0:00:28]} 39. Re1 {[%clk 0:00:19]}  Bf5 {[%clk 0:00:27]} 40. Kf3 {[%clk 0:00:19]}  b4 {[%clk 0:00:22]} 41. Rd1 {[%clk 0:00:16]}  bxc3 {[%clk 0:00:20]} 42. Bxc3+ {[%clk 0:00:16]}  Kc4 {[%clk 0:00:20]} 43. Rd4+ {[%clk 0:00:13]}  Kc5 {[%clk 0:00:20]} 44. Rxe4 {[%clk 0:00:14]} 1-0


[Site "https://www.chess.com"]

[Event "Titled Tuesday Blitz December 13 Early 2022"]
[White "Ezat, Mohamed"]
[Black "Torres Cueto, Jesus Marcial"]
[WhiteFideId "10600906"]
[BlackFideId "4415280"]
[WhiteElo "2388"]
[BlackElo "2022"]
[Result "1-0"]
[Round "06"]
[TimeControl "180+1"]
[Date "2022.12.14"]
[WhiteClock "0:00:03"]
[BlackClock "0:00:14"]

1. e4 {[%clk 0:02:35]}  e6 {[%clk 0:02:58]} 2. d4 {[%clk 0:02:31]}  d5 {[%clk 0:02:58]} 3. Nc3 {[%clk 0:02:30]}  Bb4 {[%clk 0:02:55]} 4. Ne2 {[%clk 0:02:27]}  Nf6 {[%clk 0:02:54]} 5. a3 {[%clk 0:02:26]}  Be7 {[%clk 0:02:53]} 6. Ng3 {[%clk 0:02:19]}  dxe4 {[%clk 0:02:52]} 7. Ngxe4 {[%clk 0:02:18]}  Nbd7 {[%clk 0:02:52]} 8. Bd3 {[%clk 0:02:17]}  b6 {[%clk 0:02:51]} 9. Qe2 {[%clk 0:02:14]}  Bb7 {[%clk 0:02:50]} 10. Bd2 {[%clk 0:02:06]}  c5 {[%clk 0:02:47]} 11. dxc5 {[%clk 0:02:03]}  Nxc5 {[%clk 0:02:46]} 12. Nxc5 {[%clk 0:01:52]}  Bxc5 {[%clk 0:02:47]} 13. Bb5+ {[%clk 0:01:52]}  Nd7 {[%clk 0:02:45]} 14. O-O-O {[%clk 0:01:47]}  a6 {[%clk 0:02:41]} 15. Bxd7+ {[%clk 0:01:41]}  Qxd7 {[%clk 0:02:42]} 16. Be3 {[%clk 0:01:37]}  Bxe3+ {[%clk 0:02:37]} 17. Qxe3 {[%clk 0:01:36]}  Qc7 {[%clk 0:02:37]} 18. Rd4 {[%clk 0:01:22]}  Rd8 {[%clk 0:02:34]} 19. Rxd8+ {[%clk 0:01:18]}  Qxd8 {[%clk 0:02:35]} 20. Rd1 {[%clk 0:01:18]}  Qc7 {[%clk 0:02:35]} 21. g3 {[%clk 0:01:11]}  O-O {[%clk 0:02:34]} 22. Qd4 {[%clk 0:01:10]}  Bf3 {[%clk 0:02:16]} 23. Rd3 {[%clk 0:01:08]}  Bc6 {[%clk 0:02:10]} 24. Qd6 {[%clk 0:01:07]}  Qb7 {[%clk 0:02:09]} 25. a4 {[%clk 0:01:03]}  g6 {[%clk 0:02:06]} 26. h4 {[%clk 0:01:02]}  h5 {[%clk 0:02:03]} 27. b4 {[%clk 0:00:57]}  Rc8 {[%clk 0:02:02]} 28. Kb2 {[%clk 0:00:55]}  Be8 {[%clk 0:01:53]} 29. Rd4 {[%clk 0:00:51]}  Qf3 {[%clk 0:01:45]} 30. Ne4 {[%clk 0:00:46]}  Bxa4 {[%clk 0:01:38]} 31. c3 {[%clk 0:00:15]}  Qe2+ {[%clk 0:01:38]} 32. Nd2 {[%clk 0:00:14]}  Qd1 {[%clk 0:01:34]} 33. Rd3 {[%clk 0:00:04]}  Qc2+ {[%clk 0:01:33]} 34. Ka3 {[%clk 0:00:05]}  b5 {[%clk 0:01:20]} 35. Qd4 {[%clk 0:00:04]}  Qc1+ {[%clk 0:01:15]} 36. Ka2 {[%clk 0:00:04]}  Bd1 {[%clk 0:01:06]} 37. Re3 {[%clk 0:00:02]}  Qc2+ {[%clk 0:01:05]} 38. Ka1 {[%clk 0:00:02]}  a5 {[%clk 0:00:48]} 39. Ne4 {[%clk 0:00:01]}  Qa4+ {[%clk 0:00:28]} 40. Kb2 {[%clk 0:00:01]}  Qb3+ {[%clk 0:00:26]} 41. Ka1 {[%clk 0:00:01]}  axb4 {[%clk 0:00:20]} 42. Nf6+ {[%clk 0:00:01]}  Kf8 {[%clk 0:00:21]} 43. Nd7+ {[%clk 0:00:01]}  Ke7 {[%clk 0:00:20]} 44. Qf6+ {[%clk 0:00:01]}  Ke8 {[%clk 0:00:17]} 45. Qh8+ {[%clk 0:00:01]}  Kxd7 {[%clk 0:00:16]} 46. Rd3+ {[%clk 0:00:02]}  Kc7 {[%clk 0:00:16]} 47. Qe5+ {[%clk 0:00:02]}  Kb6 {[%clk 0:00:15]} 48. Qd6+ {[%clk 0:00:02]}  Rc6 {[%clk 0:00:15]} 49. Qb8+ {[%clk 0:00:02]}  Ka6 {[%clk 0:00:14]} 50. Qa8+ {[%clk 0:00:03]}  Kb6 {[%clk 0:00:15]} 51. Qb8+ {[%clk 0:00:03]}  Kc5 {[%clk 0:00:15]} 52. Qa7+ {[%clk 0:00:03]}  Kc4 {[%clk 0:00:14]} 53. Qd4# {[%clk 0:00:03]} 1-0


[Site "https://www.chess.com"]

[Event "Titled Tuesday Blitz December 13 Early 2022"]
[White "Farmani Anosheh, Armin"]
[Black "Yeremyan, Alen"]
[WhiteFideId "24613240"]
[BlackFideId "13308998"]
[WhiteElo "2289"]
[BlackElo "2159"]
[Result "1-0"]
[Round "06"]
[TimeControl "180+1"]
[Date "2022.12.14"]
[WhiteClock "0:00:57"]
[BlackClock "0:01:12"]

1. d4 {[%clk 0:03:00]}  Nf6 {[%clk 0:02:58]} 2. c4 {[%clk 0:03:00]}  g6 {[%clk 0:02:49]} 3. f3 {[%clk 0:03:00]}  Bg7 {[%clk 0:02:47]} 4. e4 {[%clk 0:03:00]}  O-O {[%clk 0:02:47]} 5. Nc3 {[%clk 0:03:01]}  c5 {[%clk 0:02:46]} 6. d5 {[%clk 0:03:01]}  e6 {[%clk 0:02:47]} 7. Nge2 {[%clk 0:02:58]}  exd5 {[%clk 0:02:47]} 8. cxd5 {[%clk 0:02:59]}  d6 {[%clk 0:02:48]} 9. Ng3 {[%clk 0:02:59]}  h5 {[%clk 0:02:48]} 10. Be2 {[%clk 0:03:00]}  h4 {[%clk 0:02:48]} 11. Nf1 {[%clk 0:03:00]}  Nh7 {[%clk 0:02:49]} 12. Ne3 {[%clk 0:02:50]}  f5 {[%clk 0:02:49]} 13. exf5 {[%clk 0:02:50]}  gxf5 {[%clk 0:02:50]} 14. f4 {[%clk 0:02:50]}  Nd7 {[%clk 0:02:49]} 15. Bd3 {[%clk 0:02:50]}  Bd4 {[%clk 0:02:45]} 16. Nxf5 {[%clk 0:02:29]}  Re8+ {[%clk 0:02:39]} 17. Kf1 {[%clk 0:02:29]}  Ndf6 {[%clk 0:02:36]} 18. g4 {[%clk 0:01:56]}  Bxc3 {[%clk 0:01:47]} 19. bxc3 {[%clk 0:01:55]}  Ne4 {[%clk 0:01:47]} 20. Qf3 {[%clk 0:01:33]}  Bxf5 {[%clk 0:01:40]} 21. gxf5 {[%clk 0:01:32]}  Nhf6 {[%clk 0:01:40]} 22. Rg1+ {[%clk 0:01:29]}  Kf7 {[%clk 0:01:41]} 23. Rg6 {[%clk 0:01:29]}  c4 {[%clk 0:01:35]} 24. Bxe4 {[%clk 0:01:15]}  Rxe4 {[%clk 0:01:22]} 25. Be3 {[%clk 0:01:05]}  Qd7 {[%clk 0:01:10]} 26. Rxf6+ {[%clk 0:01:01]}  Kxf6 {[%clk 0:01:11]} 27. Qxe4 {[%clk 0:01:02]}  Re8 {[%clk 0:01:12]} 28. Bd4+ {[%clk 0:01:02]}  Kf7 {[%clk 0:01:12]} 29. Qe6+ {[%clk 0:00:57]} 1-0


[Site "https://www.chess.com"]

[Event "Titled Tuesday Blitz December 13 Early 2022"]
[White "Fedoseev, Vladimir"]
[Black "Domingo Nunez, Ruben"]
[WhiteFideId "24130737"]
[BlackFideId "22245570"]
[WhiteElo "2733"]
[BlackElo "2406"]
[Result "1-0"]
[Round "06"]
[TimeControl "180+1"]
[Date "2022.12.13"]
[WhiteClock "0:00:49"]
[BlackClock "0:00:14"]

1. d4 {[%clk 0:02:24]}  g6 {[%clk 0:02:59]} 2. e4 {[%clk 0:02:23]}  Bg7 {[%clk 0:03:00]} 3. c3 {[%clk 0:02:23]}  c6 {[%clk 0:03:01]} 4. Nf3 {[%clk 0:02:24]}  d5 {[%clk 0:03:02]} 5. exd5 {[%clk 0:02:24]}  cxd5 {[%clk 0:03:02]} 6. Bd3 {[%clk 0:02:23]}  Nc6 {[%clk 0:03:02]} 7. h3 {[%clk 0:02:23]}  Nf6 {[%clk 0:02:59]} 8. Bf4 {[%clk 0:02:23]}  O-O {[%clk 0:02:58]} 9. Qc2 {[%clk 0:02:23]}  a6 {[%clk 0:02:55]} 10. O-O {[%clk 0:02:23]}  b5 {[%clk 0:02:55]} 11. Nbd2 {[%clk 0:02:23]}  b4 {[%clk 0:02:55]} 12. a3 {[%clk 0:02:14]}  bxc3 {[%clk 0:02:54]} 13. Qxc3 {[%clk 0:02:15]}  Bd7 {[%clk 0:02:50]} 14. b4 {[%clk 0:02:14]}  Qb6 {[%clk 0:02:34]} 15. Rfe1 {[%clk 0:02:12]}  Rac8 {[%clk 0:02:32]} 16. Qb2 {[%clk 0:02:06]}  Ne4 {[%clk 0:02:20]} 17. Nb3 {[%clk 0:02:07]}  a5 {[%clk 0:02:10]} 18. b5 {[%clk 0:02:07]}  a4 {[%clk 0:02:04]} 19. bxc6 {[%clk 0:01:45]}  Bxc6 {[%clk 0:02:05]} 20. Rab1 {[%clk 0:01:43]}  axb3 {[%clk 0:01:52]} 21. Qxb3 {[%clk 0:01:44]}  Qa5 {[%clk 0:01:52]} 22. Qb4 {[%clk 0:01:43]}  Qa7 {[%clk 0:01:48]} 23. Rec1 {[%clk 0:01:40]}  Ba4 {[%clk 0:01:06]} 24. h4 {[%clk 0:01:13]}  Bf6 {[%clk 0:01:04]} 25. g3 {[%clk 0:01:10]}  Rfd8 {[%clk 0:00:58]} 26. Kg2 {[%clk 0:01:09]}  Bd7 {[%clk 0:00:56]} 27. Ne5 {[%clk 0:01:02]}  Be8 {[%clk 0:00:54]} 28. Be3 {[%clk 0:00:54]}  Bxe5 {[%clk 0:00:43]} 29. dxe5 {[%clk 0:00:54]}  d4 {[%clk 0:00:43]} 30. Rxc8 {[%clk 0:00:52]}  Rxc8 {[%clk 0:00:43]} 31. Qxd4 {[%clk 0:00:51]}  Qxd4 {[%clk 0:00:23]} 32. Bxd4 {[%clk 0:00:52]}  Rd8 {[%clk 0:00:20]} 33. Bxe4 {[%clk 0:00:52]}  Rxd4 {[%clk 0:00:20]} 34. Kf3 {[%clk 0:00:49]}  f6 {[%clk 0:00:18]} 35. Rb8 {[%clk 0:00:48]}  Kf7 {[%clk 0:00:17]} 36. e6+ {[%clk 0:00:48]}  Kxe6 {[%clk 0:00:15]} 37. Rxe8 {[%clk 0:00:48]}  f5 {[%clk 0:00:16]} 38. Bc6 {[%clk 0:00:47]}  Rd3+ {[%clk 0:00:16]} 39. Kg2 {[%clk 0:00:46]}  Rxa3 {[%clk 0:00:15]} 40. Rh8 {[%clk 0:00:46]}  h5 {[%clk 0:00:14]} 41. Be8 {[%clk 0:00:47]}  Kf6 {[%clk 0:00:14]} 42. Rg8 {[%clk 0:00:47]}  f4 {[%clk 0:00:14]} 43. Rxg6+ {[%clk 0:00:47]}  Kf5 {[%clk 0:00:13]} 44. Rg5+ {[%clk 0:00:48]}  Ke4 {[%clk 0:00:14]} 45. Bg6+ {[%clk 0:00:48]}  Kd4 {[%clk 0:00:14]} 46. Bxh5 {[%clk 0:00:49]}  e5 {[%clk 0:00:14]} 47. gxf4 {[%clk 0:00:49]}  exf4 {[%clk 0:00:14]} 48. Bf3 {[%clk 0:00:50]}  Ra5 {[%clk 0:00:14]} 49. Rxa5 {[%clk 0:00:49]} 1-0


[Site "https://www.chess.com"]

[Event "Titled Tuesday Blitz December 13 Early 2022"]
[White "Fernandez De La Vara, Arnaldo"]
[Black "Moroni, Luca Jr"]
[WhiteFideId "3518388"]
[BlackFideId "865834"]
[WhiteElo "2387"]
[BlackElo "2573"]
[Result "0-1"]
[Round "06"]
[TimeControl "180+1"]
[Date "2022.12.14"]
[WhiteClock "0:00:06"]
[BlackClock "0:01:29"]

1. Nf3 {[%clk 0:03:00]}  g6 {[%clk 0:03:00]} 2. g3 {[%clk 0:02:59]}  Bg7 {[%clk 0:03:01]} 3. d4 {[%clk 0:02:58]}  d6 {[%clk 0:03:02]} 4. b3 {[%clk 0:02:58]}  Bd7 {[%clk 0:03:00]} 5. Bb2 {[%clk 0:02:58]}  Qc8 {[%clk 0:03:01]} 6. Bg2 {[%clk 0:02:58]}  Nc6 {[%clk 0:02:59]} 7. c4 {[%clk 0:02:54]}  Bh3 {[%clk 0:02:56]} 8. O-O {[%clk 0:02:51]}  h5 {[%clk 0:02:55]} 9. Nc3 {[%clk 0:02:25]}  h4 {[%clk 0:02:53]} 10. Nd5 {[%clk 0:02:24]}  hxg3 {[%clk 0:02:50]} 11. fxg3 {[%clk 0:02:22]}  Bxg2 {[%clk 0:02:49]} 12. Kxg2 {[%clk 0:02:22]}  Qh3+ {[%clk 0:02:46]} 13. Kg1 {[%clk 0:02:09]}  O-O-O {[%clk 0:02:47]} 14. Qd2 {[%clk 0:01:28]}  e5 {[%clk 0:02:32]} 15. e3 {[%clk 0:01:04]}  f6 {[%clk 0:02:29]} 16. Qg2 {[%clk 0:00:40]}  Qh6 {[%clk 0:02:25]} 17. g4 {[%clk 0:00:21]}  Nge7 {[%clk 0:02:14]} 18. g5 {[%clk 0:00:21]}  fxg5 {[%clk 0:02:09]} 19. Qxg5 {[%clk 0:00:17]}  Nxd5 {[%clk 0:01:57]} 20. cxd5 {[%clk 0:00:16]}  Nb4 {[%clk 0:01:58]} 21. dxe5 {[%clk 0:00:11]}  Nxd5 {[%clk 0:01:51]} 22. Rf2 {[%clk 0:00:05]}  dxe5 {[%clk 0:01:35]} 23. Qxg6 {[%clk 0:00:06]}  Qxg6+ {[%clk 0:01:29]} 0-1


[Site "https://www.chess.com"]

[Event "Titled Tuesday Blitz December 13 Early 2022"]
[White "Fernandez Siles, Luis"]
[Black "Ronka, Erik"]
[WhiteFideId "2209420"]
[BlackFideId "505080"]
[WhiteElo "2186"]
[BlackElo "2264"]
[Result "1-0"]
[Round "06"]
[TimeControl "180+1"]
[Date "2022.12.14"]
[WhiteClock "0:01:15"]
[BlackClock "0:00:20"]

1. e4 {[%clk 0:02:56]}  c5 {[%clk 0:01:51]} 2. Nf3 {[%clk 0:02:54]}  d6 {[%clk 0:01:51]} 3. d4 {[%clk 0:02:54]}  cxd4 {[%clk 0:01:52]} 4. Nxd4 {[%clk 0:02:54]}  Nf6 {[%clk 0:01:52]} 5. Nc3 {[%clk 0:02:55]}  g6 {[%clk 0:01:52]} 6. Be3 {[%clk 0:02:54]}  Bg7 {[%clk 0:01:53]} 7. f3 {[%clk 0:02:55]}  O-O {[%clk 0:01:53]} 8. Qd2 {[%clk 0:02:55]}  Nc6 {[%clk 0:01:54]} 9. O-O-O {[%clk 0:02:55]}  d5 {[%clk 0:01:55]} 10. Kb1 {[%clk 0:02:53]}  e5 {[%clk 0:01:54]} 11. Nxc6 {[%clk 0:02:49]}  bxc6 {[%clk 0:01:54]} 12. exd5 {[%clk 0:02:48]}  cxd5 {[%clk 0:01:52]} 13. Nxd5 {[%clk 0:02:48]}  Nxd5 {[%clk 0:01:48]} 14. Qxd5 {[%clk 0:02:47]}  Qxd5 {[%clk 0:01:03]} 15. Rxd5 {[%clk 0:02:45]}  a5 {[%clk 0:01:04]} 16. a4 {[%clk 0:02:41]}  Bb7 {[%clk 0:01:02]} 17. Rd2 {[%clk 0:02:21]}  e4 {[%clk 0:00:53]} 18. f4 {[%clk 0:02:00]}  Bc6 {[%clk 0:00:47]} 19. Bb5 {[%clk 0:01:59]}  Bxb5 {[%clk 0:00:24]} 20. axb5 {[%clk 0:01:57]}  a4 {[%clk 0:00:25]} 21. Ka2 {[%clk 0:01:29]}  Rfc8 {[%clk 0:00:23]} 22. b6 {[%clk 0:01:26]}  Rc4 {[%clk 0:00:22]} 23. Rhd1 {[%clk 0:01:23]}  Rb4 {[%clk 0:00:19]} 24. Rd8+ {[%clk 0:01:17]}  Rxd8 {[%clk 0:00:20]} 25. Rxd8+ {[%clk 0:01:17]}  Bf8 {[%clk 0:00:20]} 26. Rxf8+ {[%clk 0:01:15]} 1-0


[Site "https://www.chess.com"]